Cogmind - Beta 12 X6 @@@ ROGUE MODE // 2023.02.19 @ 12:40:35

Player: kasaphescent

Result: Smashed by cave-in

 Performance 
-------------
Evolutions (0)             0
Regions Visited (2)        400
Robots Destroyed (5)       25
Value Destroyed (169)      169
Prototype IDs (0)          0
Alien Tech Used (0)        0
Bonus (0)                  0
              TOTAL SCORE: 594

 Bonus
-------
None

 Cogmind 
---------
Core Integrity             0/250
Matter                     300/300
Energy                     98/100
System Corruption          0%
Temperature                Cool (0)
Movement                   Core (50)
Location                   -10/Mines

 Parts 
-------
>           --- POWER (1) --------
                (None)
>           --- PROPULSION (2) ---
                (None)
>           --- UTILITY (2) ------
                (None)
>           --- WEAPON (2) -------
  Makeshift Hammer
>           --- INVENTORY (5) ----
      Light Ion Engine
      Small Storage Unit
            Assault Rifle
            Assault Rifle
            Rocket Launcher

 Peak State 
------------
>           --- POWER ------------
                (None)
>           --- PROPULSION -------
                (None)
>           --- UTILITY ----------
                (None)
>           --- WEAPON -----------
  Makeshift Hammer
>           --- INVENTORY --------
      Light Ion Engine
      Small Storage Unit
            Assault Rifle
            Assault Rifle
[Rating: 4]

 Favorites 
-----------
Power                      None
Propulsion                 None
Utility                    None
Weapon                     Makeshift Hammer
  Impact Weapon            Makeshift Hammer

 Build                          | -11 -10 -10 
-------                    Run  | Jun Mat Min 
Slots Evolved              .    | .   .   .   
  Power                    .    | .   .   .   
  Propulsion               .    | .   .   .   
  Utility                  .    | .   .   .   
  Weapon                   .    | .   .   .   
Parts Attached             1    | .   .   1   
  Power                    .    | .   .   .   
    Engine                 .    | .   .   .   
    Core                   .    | .   .   .   
    Reactor                .    | .   .   .   
  Propulsion               .    | .   .   .   
    Treads                 .    | .   .   .   
    Leg                    .    | .   .   .   
    Wheel                  .    | .   .   .   
    Hover                  .    | .   .   .   
    Flight                 .    | .   .   .   
  Utility                  .    | .   .   .   
    Device                 .    | .   .   .   
    Storage                .    | .   .   .   
    Processor              .    | .   .   .   
    Hackware               .    | .   .   .   
    Protection             .    | .   .   .   
    Artifact               .    | .   .   .   
  Weapon                   1    | .   .   1   
    Energy Gun             .    | .   .   .   
    Energy Cannon          .    | .   .   .   
    Ballistic Gun          .    | .   .   .   
    Ballistic Cannon       .    | .   .   .   
    Launcher               .    | .   .   .   
    Special Weapon         .    | .   .   .   
    Impact Weapon          1    | .   .   1   
    Slashing Weapon        .    | .   .   .   
    Piercing Weapon        .    | .   .   .   
    Special Melee Weapon   .    | .   .   .   
  Unidentified Prototypes  .    | .   .   .   
Parts Lost                 .    | .   .   .   
  Power                    .    | .   .   .   
  Propulsion               .    | .   .   .   
  Utility                  .    | .   .   .   
  Weapon                   .    | .   .   .   
  Highest Loss Streak      .    | .   .   .   
  To Critical Strikes      .    | .   .   .   
Average Slot Usage (%)     8    | .   .   10  
  Impact Weapon            8    | .   .   10  
Naked Turns                102  | .   51  51  
Heaviest Build             3    | .   .   3   
  Greatest Support         3    | 3   3   3   
  Greatest Overweight (x)  .    | .   .   .   
  Average Overweight (x)   .    | .   .   .   
Largest Inventory Capacity 5    | 5   5   5   
  Average Capacity         5    | 5   5   5   
  Most Carried             5    | 4   4   5   
  Average Carried          4    | 2   4   4   
  Final Capacity           5    | 5   5   5   
  Final Carried            5    | 4   4   5   

 Class Distribution 
--------------------
 100% | Mutant

 Dominant Class 
----------------
 Mutant | -10/Materials
 Mutant | -10/Mines

 Resources                      | -11 -10 -10 
-----------                Run  | Jun Mat Min 
Matter Collected           210  | 200 .   10  
  Remotely                 .    | .   .   .   
Salvage Created            128  | .   .   128 
  Parts                    5    | .   .   5   
Haulers Intercepted        .    | .   .   .   
Recyclers Shooed           .    | .   .   .   
Parts Field Recycled       .    | .   .   .   
  Retrieved Matter         .    | .   .   .   
Parts Self-Destructed      .    | .   .   .   
  Prevented                .    | .   .   .   

 Kills                          | -11 -10 -10 
-------                    Run  | Jun Mat Min 
Combat Hostiles Destroyed  4    | .   .   4   
  Melee                    2    | .   .   2   
Classes Destroyed          3    | .   .   3   
  Worker                   1    | .   .   1   
  Grunt                    3    | .   .   3   
  Demolisher               1    | .   .   1   
Best Kill Streak           2    | .   .   2   
  Combat Bots Only         2    | .   .   2   
Max Kills in Single Turn   1    | .   .   1   
  Gunslinging              .    | .   .   .   
  Exploded                 .    | .   .   .   
  Melee                    1    | .   .   1   
Uniques/NPCs Destroyed     .    | .   .   .   

 Combat                         | -11 -10 -10 
--------                   Run  | Jun Mat Min 
Damage Taken               311  | .   22  289 
  Core                     258  | .   22  236 
  Absorbed by Shields      .    | .   .   .   
Core Remaining (%)         100  | 100 .   .   
Volleys Fired              .    | .   .   .   
  Largest                  .    | .   .   .   
  Hottest                  .    | .   .   .   
Shots Fired                .    | .   .   .   
  Gun                      .    | .   .   .   
  Cannon                   .    | .   .   .   
  Launcher                 .    | .   .   .   
  Special                  .    | .   .   .   
  Kinetic                  .    | .   .   .   
  Thermal                  .    | .   .   .   
  Explosive                .    | .   .   .   
  Electromagnetic          .    | .   .   .   
  Robot Hit Streak         .    | .   .   .   
  Robot Miss Streak        .    | .   .   .   
  Penetration Max          .    | .   .   .   
  Secondary Targets        .    | .   .   .   
Shots Hit Robots           10   | .   .   10  
  Core Hits                2    | .   .   2   
  Critical Kills           1    | .   .   1   
  Critical Parts Destroyed 2    | .   .   2   
  Critical Strikes         3    | .   .   3   
    Smash                  3    | .   .   3   
Melee Attacks              12   | .   .   12  
  Impact                   12   | .   .   12  
  Slashing                 .    | .   .   .   
  Piercing                 .    | .   .   .   
  Sneak Attacks            1    | .   .   1   
    Combat Hostiles        .    | .   .   .   
  Follow-up Attacks        .    | .   .   .   
Damage Inflicted           538  | .   .   538 
  Guns                     .    | .   .   .   
  Cannons                  .    | .   .   .   
  Explosions               .    | .   .   .   
  Melee                    538  | .   .   538 
  Ramming                  .    | .   .   .   
  Kinetic                  .    | .   .   .   
  Thermal                  .    | .   .   .   
  Explosive                .    | .   .   .   
  Electromagnetic          .    | .   .   .   
  Impact                   538  | .   .   538 
  Slashing                 .    | .   .   .   
  Piercing                 .    | .   .   .   
Highest Corruption         .    | .   .   .   
  Average Corruption       .    | .   .   .   
  Corruption Purged        .    | .   .   .   
  Corruption Blocked       .    | .   .   .   
Overload Shots             .    | .   .   .   
Overflow Damage            171  | .   .   171 
  Projectiles              .    | .   .   .   
  Explosions               .    | .   .   .   
  Melee                    171  | .   .   171 
Knockbacks                 2    | .   .   2   
  Impact                   2    | .   .   2   
  Kinetic                  .    | .   .   .   
  Secondary                .    | .   .   .   
Self-Inflicted Damage      .    | .   .   .   
  Shots                    .    | .   .   .   
  Rammed                   .    | .   .   .   
Targets Rammed             .    | .   .   .   
  Kicked                   .    | .   .   .   
  Crushed                  .    | .   .   .   
Highest Temperature        .    | .   .   .   
  Average Temperature      .    | .   .   .   
  Received Heat Transfer   42   | .   12  30  
Siege Activations          .    | .   .   .   
Robots Corrupted           .    | .   .   .   
  Combat Hostiles          .    | .   .   .   
  Parts Fried              1    | .   .   1   
  Impact Corruptions       5    | .   .   5   
Robots Melted              .    | .   .   .   
  Combat Hostiles          .    | .   .   .   
  Parts Melted             .    | .   .   .   
  Heat Transferred         .    | .   .   .   
Parts Sabotaged            .    | .   .   .   
Parts Stolen               .    | .   .   .   
Parts Stripped             .    | .   .   .   
Power Chain Reactions      .    | .   .   .   
Missiles Intercepted       .    | .   .   .   

 Alert                          | -11 -10 -10 
-------                    Run  | Jun Mat Min 
Peak Influence             122  | .   30  122 
  Initial                  17   | .   .   17  
  Average                  44   | .   3   61  
Maximum Alert Level        .    | .   .   .   
  Low Security (%)         100  | 100 100 100 
  Level 1                  .    | .   .   .   
  Level 2                  .    | .   .   .   
  Level 3                  .    | .   .   .   
  Level 4                  .    | .   .   .   
  Level 5                  .    | .   .   .   
  High Security            .    | .   .   .   
  Max Security             .    | .   .   .   
Squads Dispatched          .    | .   .   .   
  Investigation            .    | .   .   .   
  Extermination            .    | .   .   .   
  Reinforcement            .    | .   .   .   
  Assault                  .    | .   .   .   
  Garrison                 .    | .   .   .   
  Intercept                .    | .   .   .   
Searches Triggered         .    | .   .   .   
Construction Impeded       .    | .   .   .   
Haulers Reinforced         .    | .   .   .   
Active Scanning Responses  .    | .   .   .   
Cargo Convoy Interrupts    .    | .   .   .   

 Stealth                        | -11 -10 -10 
---------                  Run  | Jun Mat Min 
Distress Signals           .    | .   .   .   
Communications Jammed      .    | .   .   .   
  Distress Signals         .    | .   .   .   
Times Spotted              10   | .   3   7   
  Peak Tracking Total      2    | .   2   2   
  Tactical Retreats        2    | .   1   1   

 Traps                          | -11 -10 -10 
-------                    Run  | Jun Mat Min 
Traps Triggered            .    | .   .   .   
  Indirectly               .    | .   .   .   
Trap Hack Attempts         .    | .   .   .   
  Triggered                .    | .   .   .   
  Disarmed                 .    | .   .   .   
  Reprogrammed             .    | .   .   .   
  Reused                   .    | .   .   .   
Traps Extracted            .    | .   .   .   
  Installed                .    | .   .   .   
  Triggered                .    | .   .   .   

 Machines                       | -11 -10 -10 
----------                 Run  | Jun Mat Min 
Machines Disabled          .    | .   .   .   
  Max in Single Turn       .    | .   .   .   
Machines Repaired          .    | .   .   .   
Machines Sabotaged         .    | .   .   .   
Overloaded Fab Kills       .    | .   .   .   

 Hacking                        | -11 -10 -10 
---------                  Run  | Jun Mat Min 
Machines Accessed          .    | .   .   .   
  Terminals                .    | .   .   .   
  Fabricators              .    | .   .   .   
  Repair Stations          .    | .   .   .   
  Recycling Units          .    | .   .   .   
  Scanalyzers              .    | .   .   .   
  Garrison Access          .    | .   .   .   
Total Hacks                .    | .   .   .   
  Successful               .    | .   .   .   
  Failed                   .    | .   .   .   
    Catastrophic           .    | .   .   .   
  Database Lockouts        .    | .   .   .   
  Manual                   .    | .   .   .   
  Terminals                .    | .   .   .   
  Fabricators              .    | .   .   .   
  Repair Stations          .    | .   .   .   
  Recycling Units          .    | .   .   .   
  Scanalyzers              .    | .   .   .   
  Garrison Access          .    | .   .   .   
Terminal Hacks             .    | .   .   .   
Fabricator Hacks           .    | .   .   .   
Repair Station Hacks       .    | .   .   .   
Recycling Unit Hacks       .    | .   .   .   
Scanalyzer                 .    | .   .   .   
Garrison Access Hacks      .    | .   .   .   
Unauthorized Hacks         .    | .   .   .   
  Terminals                .    | .   .   .   
  Fabricators              .    | .   .   .   
  Repair Stations          .    | .   .   .   
  Recycling Units          .    | .   .   .   
  Scanalyzers              .    | .   .   .   
  Garrison Access          .    | .   .   .   
Data Cores Recovered       .    | .   .   .   
  Used                     .    | .   .   .   
Hacking Detections         .    | .   .   .   
  Full Trace Events        .    | .   .   .   
  Feedback Events          .    | .   .   .   
  Feedback Blocked         .    | .   .   .   
Robot Schematics Acquired  .    | .   .   .   
  Robots Built             .    | .   .   .   
    Authchips              .    | .   .   .   
    Time                   .    | .   .   .   
  Total Robot Build Rating .    | .   .   .   
Part Schematics Acquired   .    | .   .   .   
  Parts Built              .    | .   .   .   
    Authchips              .    | .   .   .   
    Time                   .    | .   .   .   
  Total Part Build Rating  .    | .   .   .   
Parts Repaired             .    | .   .   .   
  Time                     .    | .   .   .   
Parts Recycled             .    | .   .   .   
  Recycled Matter          .    | .   .   .   
  Retrieved Matter         .    | .   .   .   
  Retrieved Components     .    | .   .   .   
Parts Scanalyzed           .    | .   .   .   
  Part Schematics Acquired .    | .   .   .   
  Parts Damaged            .    | .   .   .   

 Bothacking                     | -11 -10 -10 
------------               Run  | Jun Mat Min 
Used RIF Installer         .    | .   .   .   
Robots Hacked              .    | .   .   .   
  Non-combat               .    | .   .   .   
  Combat                   .    | .   .   .   
Robot Hacks Applied        .    | .   .   .   
Relay Couplers Released    .    | .   .   .   
Fabnet Peak Effective %    .    | .   .   .   
Robots Rewired             .    | .   .   .   
Allies Hacked              .    | .   .   .   
Hacks Repelled             .    | .   .   .   

 Allies                         | -11 -10 -10 
--------                   Run  | Jun Mat Min 
Total Allies               .    | .   .   .   
  Largest Group            .    | .   .   .   
  Highest-Rated Group      .    | .   .   .   
  Highest-Rated Ally       .    | .   .   .   
Total Orders               .    | .   .   .   
Ally Attacks               .    | .   .   .   
  Total Damage             .    | .   .   .   
  Kills                    .    | .   .   .   
Allies Corrupted           .    | .   .   .   
Allies Melted              .    | .   .   .   

 Intel                          | -11 -10 -10 
-------                    Run  | Jun Mat Min 
Robot Analysis Total       .    | .   .   .   
Derelict Logs Recovered    2    | .   .   2   
Drone Launches             .    | .   .   .   
  Drone Recoveries         .    | .   .   .   

 Exploration                    | -11 -10 -10 
-------------              Run  | Jun Mat Min 
Turns Passed               286  | 30  51  205 
Spaces Moved               385  | 51  102 232 
  Core                     385  | 51  102 232 
  Treads                   .    | .   .   .   
  Legs                     .    | .   .   .   
  Wheels                   .    | .   .   .   
  Hover                    .    | .   .   .   
  Flight                   .    | .   .   .   
  Fastest Speed            50   | 50  50  50  
  Average Speed            50   | 50  50  50  
  Slowest Speed            50   | 50  50  50  
  Overloaded Moves         .    | .   .   .   
  Propulsion Burnouts      .    | .   .   .   
  Robots Hopped            .    | .   .   .   
  Cave-ins Triggered       1    | .   .   1   
Exploration Rate (%)       29   | 3   26  60  
  Regions Visited          2
    Branch Regions         1
  Pre-discovered Areas     .    | .   .   .   
  Known Exits Taken        .    | .   .   .   
  Unknown Exits Taken      2    | 1   1   .   
Scrap Searched             .    | .   .   .   
Spaces Dug                 .    | .   .   .   
Terrain Destroyed          .    | .   .   .   
  Melee                    .    | .   .   .   
  Projectile               .    | .   .   .   
  AOE                      .    | .   .   .   
Terrain Rammed             .    | .   .   .   
  Walls Destroyed          .    | .   .   .   
  Machines Disabled        .    | .   .   .   

 Actions                        | -11 -10 -10 
---------                  Run  | Jun Mat Min 
Total                      465  | 54  101 310 
  Wait                     64   | .   .   64  
  Move                     383  | 50  101 232 
  Hop                      .    | .   .   .   
  Pick Up                  5    | 4   .   1   
  Fast Attach              1    | .   .   1   
  Attach                   .    | .   .   .   
  Detach                   .    | .   .   .   
  Swap                     .    | .   .   .   
  Drop                     .    | .   .   .   
  Fire                     .    | .   .   .   
  Melee                    12   | .   .   12  
  Ram                      .    | .   .   .   
  Kick                     .    | .   .   .   
  Crush                    .    | .   .   .   
  Escape Stasis            .    | .   .   .   
  Rewire                   .    | .   .   .   
  Trap                     .    | .   .   .   
  Miscellaneous            .    | .   .   .   

 Route 
-------
-11/Junkyard
-10/Materials
-10/Mines

 History 
---------
 Turn | Location      | Event
   11 | -11/Junkyard  | Discovered new exit (range 15)
   31 | -11/Junkyard  | Entered Materials
   76 | -10/Materials | Discovered new exit (range 7)
   82 | -10/Materials | Entered Mines
   83 | -10/Mines     | Assembled infested the area
   88 | -10/Mines     | Assisted by a Guerilla fighting off Assembled
  132 | -10/Mines     | A weapon hastily lodged in a ceiling crevice suddenly fell to the ground
  143 | -10/Mines     | Learned location of 1 exit from Materials
  177 | -10/Mines     | Received a Rocket Launcher from a helpful Derelict
  195 | -10/Mines     | Learned Materials emergency access door positions
  282 | -10/Mines     | Core integrity fell below 50%
  286 | -10/Mines     | Core integrity fell below 20%
  288 | -10/Mines     | Crushed by falling debris
  288 | -10/Mines     | Smashed by cave-in

 Last Messages 
---------------
00263_ G-34 Mercenary system terminally corrupted.
00263_ Aluminum Leg fried.
00265_ R-06 Scavenger collects Particle Gun.
00270_ R-06 Scavenger collects Lgt. Nuclear Core.
00275_ R-06 Scavenger collects Targeting Computer.
00279_ R-06 Scavenger destroyed.
00280_ D-53 Grenadier knocked back.
00281_ K-01 Serf collects debris.
00284_ D-53 Grenadier suffers critical hit (Smash).
00284_ Destroyed Lgt. Deuterium Engine.
00284_ D-53 Grenadier system corrupted by crushing effect.
00285_ D-53 Grenadier IFF system glitched.
00285_ K-01 Serf destroyed.
00286_ The unstable cave ceiling collapses.
00287_ Destroyed Mni. Grenade Launcher.
00287_ D-53 Grenadier system corrupted by crushing effect.
00287_ D-53 Grenadier knocked back.
00288_ D-53 Grenadier system terminally corrupted.
00288_ The unstable cave ceiling collapses.
00288_ Crushed by falling debris.

 Map 
-----
+----------------------------------------------------+
|             ????## ##      #?????????????????????? |
|             ????#  ##      #?????????????????????? |
|             ????#  ###### ##?????????????????????? |
|             ????####????# #??????????????????????? |
|             ????????????# #??????????????????????? |
|             ????????????# #??????????????????????? |
|             ????????????# #??????????????????????? |
|             ????????????# #??????????????????????? |
|             ???????###### #??????????????????????? |
|             ??????##   ## #??????????????????????? |
|             ??????#       ##?????????????????????? |
|             ?######        #?????????????????????? |
|             ?#^            #?????????????????????? |
|             ?#  #         ##?????????????????????? |
|             ?# #        ###??????????????????????? |
|             ?# #     #  #????????????????????????? |
|             ?#   ##^##  #????????????????????????? |
|             ?#  ^   ##  #????????????????????????? |
|             ?#########=!#????????????????????????? |
|             ???????## %=###??????????????????????? |
|             ???????#  *%  ###????????????????????? |
|             ???????#   [    ###??????????????????? |
|             ??????##     #    #??????????????????? |
|             ??????#           ##### #????????????? |
|             ??????#        %        #????????????? |
|             ??????#      @    ######?????????????? |
|             ??????# "        ##??????????????????? |
|             ??????#     #   ##???????????????????? |
|             ??????#     ## ##????????????????????? |
|             ??????#     #?##?????????????????????? |
|             ??????#######????????????????????????? |
|             ?????????????????????????????????????? |
|                                                    |
|                                                    |
|                                                    |
|                                                    |
|                                                    |
|                                                    |
|                                                    |
|                                                    |
|                                                    |
|                                                    |
|                                                    |
|                                                    |
|                                                    |
|                                                    |
|                                                    |
|                                                    |
|                                                    |
|                                                    |
+----------------------------------------------------+

 Best States
-------------
Heat Dissipation           25
Energy Generation          5
Energy Capacity            100
Matter Stores              300
Matter Capacity            300
Sight Range                16
Terrain Scan Density       10
Evasion (%)                50

 Item Schematics 
-----------------
None

 Robot Schematics 
------------------
None

 Fabricated
------------
Nothing

 Alien Tech Used 
-----------------
None

 Achievements 
--------------
None

 Challenges 
------------
None

 Game 
------
Seed              AbsorptionGhostAccelerator
  Manual?         0
Play Time         00:05:17
  Cumulative      304.7 hours
  Start           2023.02.19 @ 12:37:13
  End             2023.02.19 @ 12:40:35
Sessions          1
Manual Loads      0
Difficulty        Rogue
Special Mode      None
Game No.          206
  Rogue           206
  Adventurer      0
  Explorer        0
Win Type          -
  Total           18
  Types           15/0/2/1/0/0/0/0/0
Lore%             68
Gallery%          84
Achievement%      65
Wizard Run        0

 Options 
---------
ASCII             0
Keyboard          1
Movement          Numpad
Keybinds          0
Fullscreen        2
Font              18/SmallcapsGlow
Map View          76x50
Tactical HUD      1
Map Filters       NONE
Filters           NONE
Steam             1


RUN: 36db9b78-8271-40d8-81c7-7d36f48b98fd